[Event "Late-Titled-Tuesday-Blitz-April-30-2024"]
[Site "Chess.com"]
[Date "2024.04.30"]
[Round "10"]
[White "LeninGuerra"]
[Black "mbojan"]
[Result "0-1"]
[WhiteElo "2666"]
[BlackElo "2934"]
[TimeControl "180+1"]
[EndTime "15:54:37 PDT"]
[Termination "mbojan won by resignation"]

1. e4 {[%clk 0:02:56.7]} 1... c5 {[%clk 0:03:00.1]} 2. Nf3 {[%clk 0:02:34]} 2...
a6 {[%clk 0:02:59.3]} 3. b4 {[%clk 0:02:33.3]} 3... cxb4 {[%clk 0:02:53.4]} 4.
a3 {[%clk 0:02:33.6]} 4... e6 {[%clk 0:02:48]} 5. Bd3 {[%clk 0:02:31.4]} 5... d5
{[%clk 0:02:47.4]} 6. e5 {[%clk 0:02:30.9]} 6... Nc6 {[%clk 0:02:46.1]} 7. O-O
{[%clk 0:02:31]} 7... Nge7 {[%clk 0:02:45.8]} 8. Re1 {[%clk 0:02:29.8]} 8... Qc7
{[%clk 0:02:45.8]} 9. Bf1 {[%clk 0:02:28.8]} 9... bxa3 {[%clk 0:02:22.3]} 10.
Bxa3 {[%clk 0:02:26.5]} 10... Ng6 {[%clk 0:02:13.8]} 11. Bxf8 {[%clk 0:02:27.4]}
11... Nxf8 {[%clk 0:02:11.5]} 12. Nc3 {[%clk 0:02:26.2]} 12... Ng6 {[%clk
0:02:09.9]} 13. Nb5 {[%clk 0:02:25]} 13... Qd7 {[%clk 0:01:55]} 14. Nd6+ {[%clk
0:02:24.2]} 14... Kf8 {[%clk 0:01:55.3]} 15. d4 {[%clk 0:02:23.6]} 15... f6
{[%clk 0:01:55.1]} 16. Bb5 {[%clk 0:02:10]} 16... Rb8 {[%clk 0:01:40.5]} 17. Ba4
{[%clk 0:01:59.4]} 17... b5 {[%clk 0:01:31.3]} 18. Bb3 {[%clk 0:01:58.6]} 18...
a5 {[%clk 0:01:31.7]} 19. c3 {[%clk 0:01:48.6]} 19... a4 {[%clk 0:01:19.5]} 20.
Bc2 {[%clk 0:01:45.8]} 20... Na5 {[%clk 0:01:14.4]} 21. Bxg6 {[%clk 0:01:33.4]}
21... hxg6 {[%clk 0:01:15.3]} 22. Qd3 {[%clk 0:01:33.5]} 22... Nc4 {[%clk
0:01:08.8]} 23. Nxc4 {[%clk 0:01:31.3]} 23... dxc4 {[%clk 0:01:09.7]} 24. Qxg6
{[%clk 0:01:31.1]} 24... Qf7 {[%clk 0:01:10.4]} 25. Qg3 {[%clk 0:01:26]} 25...
Rb6 {[%clk 0:00:55.9]} 26. Reb1 {[%clk 0:01:13.1]} 26... Qb7 {[%clk 0:00:42.2]}
27. exf6 {[%clk 0:01:03.1]} 27... gxf6 {[%clk 0:00:43.1]} 28. Qg6 {[%clk
0:01:02.8]} 28... Qf7 {[%clk 0:00:10.8]} 29. Qxf7+ {[%clk 0:00:47.3]} 29... Kxf7
{[%clk 0:00:11.7]} 30. Rxa4 {[%clk 0:00:29.6]} 30... bxa4 {[%clk 0:00:12.6]} 31.
Rxb6 {[%clk 0:00:28.4]} 31... Bd7 {[%clk 0:00:13.1]} 32. Ra6 {[%clk 0:00:26.1]}
32... Rb8 {[%clk 0:00:12.7]} 33. h4 {[%clk 0:00:18.9]} 33... Rb3 {[%clk
0:00:11.8]} 34. Nd2 {[%clk 0:00:15.9]} 34... Rxc3 {[%clk 0:00:11]} 35. Ne4
{[%clk 0:00:16.5]} 35... Rc1+ {[%clk 0:00:11.1]} 36. Kh2 {[%clk 0:00:15.9]}
36... c3 {[%clk 0:00:04.8]} 37. Ra7 {[%clk 0:00:15.8]} 37... Ke7 {[%clk
0:00:04.5]} 38. Nc5 {[%clk 0:00:12.7]} 38... c2 {[%clk 0:00:04.9]} 39. Rxd7+
{[%clk 0:00:12.9]} 39... Ke8 {[%clk 0:00:05.5]} 40. Rc7 {[%clk 0:00:08.5]} 40...
Rh1+ {[%clk 0:00:05.8]} 41. Kxh1 {[%clk 0:00:08]} 41... c1=Q+ {[%clk 0:00:06.7]}
42. Kh2 {[%clk 0:00:08.5]} 42... Qf4+ {[%clk 0:00:07.4]} 43. Kh3 {[%clk
0:00:08]} 43... Qxc7 {[%clk 0:00:08.3]} 44. Nxe6 {[%clk 0:00:07.3]} 44... Qd7
{[%clk 0:00:08.3]} 45. g4 {[%clk 0:00:08.2]} 45... Qxe6 {[%clk 0:00:08.3]} 0-1

[Event "Late-Titled-Tuesday-Blitz-April-30-2024"]
[Site "Chess.com"]
[Date "2024.04.30"]
[Round "10"]
[White "penguingm1"]
[Black "jcibarra"]
[Result "1-0"]
[WhiteElo "2894"]
[BlackElo "2994"]
[TimeControl "180+1"]
[EndTime "15:54:46 PDT"]
[Termination "penguingm1 won by checkmate"]

1. d4 {[%clk 0:03:00.9]} 1... Nf6 {[%clk 0:03:00.7]} 2. c4 {[%clk 0:02:58]} 2...
d6 {[%clk 0:03:00.9]} 3. Nc3 {[%clk 0:02:56.8]} 3... e5 {[%clk 0:03:01]} 4. Nf3
{[%clk 0:02:53]} 4... e4 {[%clk 0:03:00.8]} 5. Ng5 {[%clk 0:02:49.6]} 5... Qe7
{[%clk 0:03:01.4]} 6. g3 {[%clk 0:02:46.2]} 6... h6 {[%clk 0:03:00.9]} 7. Nh3
{[%clk 0:02:45.9]} 7... c6 {[%clk 0:03:00.5]} 8. d5 {[%clk 0:02:42.7]} 8... c5
{[%clk 0:02:58.4]} 9. Bg2 {[%clk 0:02:41.7]} 9... Bf5 {[%clk 0:02:58]} 10. Qa4+
{[%clk 0:02:15.6]} 10... Nbd7 {[%clk 0:02:38.8]} 11. Nb5 {[%clk 0:02:15.3]}
11... Qd8 {[%clk 0:02:33.6]} 12. Bf4 {[%clk 0:02:00.5]} 12... Qb6 {[%clk
0:02:30.6]} 13. O-O {[%clk 0:01:52.7]} 13... g5 {[%clk 0:02:24.6]} 14. Bd2
{[%clk 0:01:50.5]} 14... a6 {[%clk 0:02:14.7]} 15. f3 {[%clk 0:01:42.3]} 15...
Bg7 {[%clk 0:02:06.2]} 16. fxe4 {[%clk 0:01:11]} 16... Bxe4 {[%clk 0:00:43.9]}
17. Rxf6 {[%clk 0:01:10.2]} 17... axb5 {[%clk 0:00:20.3]} 18. Qxa8+ {[%clk
0:00:46.5]} 18... Ke7 {[%clk 0:00:20.5]} 19. Rxd6 {[%clk 0:00:16.7]} 19... Qxd6
{[%clk 0:00:07.1]} 20. Qa3 {[%clk 0:00:16.3]} 20... Bxg2 {[%clk 0:00:07.2]} 21.
Kxg2 {[%clk 0:00:15.5]} 21... bxc4 {[%clk 0:00:07.8]} 22. e4 {[%clk 0:00:15.8]}
22... Qe5 {[%clk 0:00:07.1]} 23. Nf2 {[%clk 0:00:07.3]} 23... Qxb2 {[%clk
0:00:06.8]} 24. Qxb2 {[%clk 0:00:06]} 24... Bxb2 {[%clk 0:00:07.7]} 25. Rb1
{[%clk 0:00:05.3]} 25... c3 {[%clk 0:00:08.3]} 26. Be3 {[%clk 0:00:05.8]} 26...
Ra8 {[%clk 0:00:08.1]} 27. Kf3 {[%clk 0:00:03.5]} 27... Rxa2 {[%clk 0:00:08.4]}
28. Nd3 {[%clk 0:00:03.9]} 28... c4 {[%clk 0:00:07]} 29. Nb4 {[%clk 0:00:04.4]}
29... Ra4 {[%clk 0:00:06.5]} 30. Nc2 {[%clk 0:00:04]} 30... Ne5+ {[%clk
0:00:05.9]} 31. Ke2 {[%clk 0:00:04.6]} 31... b5 {[%clk 0:00:05.4]} 32. Bd4
{[%clk 0:00:04.5]} 32... f6 {[%clk 0:00:05.3]} 33. Ke3 {[%clk 0:00:03.2]} 33...
b4 {[%clk 0:00:05.4]} 34. Bc5+ {[%clk 0:00:03.5]} 34... Kd7 {[%clk 0:00:05.3]}
35. Bxb4 {[%clk 0:00:02.7]} 35... Ng4+ {[%clk 0:00:05.5]} 36. Kd4 {[%clk
0:00:02.8]} 36... Nxh2 {[%clk 0:00:05.4]} 37. Kxc4 {[%clk 0:00:03.3]} 37... Nf3
{[%clk 0:00:05.6]} 38. Rh1 {[%clk 0:00:02.9]} 38... Nd2+ {[%clk 0:00:05.8]} 39.
Kd3 {[%clk 0:00:03.2]} 39... Nf3 {[%clk 0:00:05.6]} 40. Rxh6 {[%clk 0:00:03]}
40... Ne5+ {[%clk 0:00:05.8]} 41. Kd4 {[%clk 0:00:03.7]} 41... Ng4 {[%clk
0:00:05.3]} 42. Rh7+ {[%clk 0:00:03.7]} 42... Ke8 {[%clk 0:00:06]} 43. d6 {[%clk
0:00:03.9]} 43... Rxb4+ {[%clk 0:00:04.7]} 44. Kd5 {[%clk 0:00:03.7]} 44... Rb5+
{[%clk 0:00:04.8]} 45. Kc6 {[%clk 0:00:04.1]} 45... Ra5 {[%clk 0:00:02.3]} 46.
d7+ {[%clk 0:00:04.2]} 46... Kd8 {[%clk 0:00:01.8]} 47. Rh8+ {[%clk 0:00:04.8]}
47... Ke7 {[%clk 0:00:02.3]} 48. d8=Q+ {[%clk 0:00:05.6]} 48... Kf7 {[%clk
0:00:02.3]} 49. Qe8+ {[%clk 0:00:05.5]} 49... Kg7 {[%clk 0:00:02.5]} 50. Qg8#
{[%clk 0:00:06.4]} 1-0

[Event "Late-Titled-Tuesday-Blitz-April-30-2024"]
[Site "Chess.com"]
[Date "2024.04.30"]
[Round "10"]
[White "nitpicker"]
[Black "1g60-1"]
[Result "0-1"]
[WhiteElo "2252"]
[BlackElo "2425"]
[TimeControl "180+1"]
[EndTime "15:54:46 PDT"]
[Termination "1g60-1 won on time"]

1. d4 {[%clk 0:03:00.9]} 1... e6 {[%clk 0:02:58.4]} 2. c4 {[%clk 0:03:00.5]}
2... f5 {[%clk 0:02:56.8]} 3. Nf3 {[%clk 0:02:54.3]} 3... Nf6 {[%clk 0:02:56.6]}
4. Qc2 {[%clk 0:02:51.4]} 4... Be7 {[%clk 0:02:55.6]} 5. h3 {[%clk 0:02:47.7]}
5... d5 {[%clk 0:02:39.6]} 6. Bf4 {[%clk 0:02:45.3]} 6... O-O {[%clk 0:02:38.9]}
7. e3 {[%clk 0:02:42]} 7... Ne4 {[%clk 0:02:33.3]} 8. Bd3 {[%clk 0:02:05.6]}
8... a5 {[%clk 0:02:12.9]} 9. O-O {[%clk 0:01:54.9]} 9... g5 {[%clk 0:02:08.3]}
10. Bh2 {[%clk 0:01:53.9]} 10... h5 {[%clk 0:01:54.1]} 11. cxd5 {[%clk
0:01:52.1]} 11... exd5 {[%clk 0:01:54]} 12. Qxc7 {[%clk 0:01:39.8]} 12... Nc6
{[%clk 0:01:50.8]} 13. Qxd8 {[%clk 0:01:37.9]} 13... Rxd8 {[%clk 0:01:45.3]} 14.
Nc3 {[%clk 0:01:24.7]} 14... g4 {[%clk 0:01:39.6]} 15. Ne5 {[%clk 0:01:14.6]}
15... Nb4 {[%clk 0:01:33.2]} 16. Be2 {[%clk 0:01:02.3]} 16... Be6 {[%clk
0:01:16.5]} 17. a3 {[%clk 0:00:57.2]} 17... Nc6 {[%clk 0:01:15.3]} 18. Ng6
{[%clk 0:00:53.8]} 18... Bf6 {[%clk 0:01:09.8]} 19. Nf4 {[%clk 0:00:52.6]} 19...
Bf7 {[%clk 0:01:10.1]} 20. Na4 {[%clk 0:00:48.4]} 20... Kh7 {[%clk 0:00:55.2]}
21. Kh1 {[%clk 0:00:39.6]} 21... Rg8 {[%clk 0:00:50.3]} 22. Bd3 {[%clk
0:00:33.4]} 22... Ne7 {[%clk 0:00:25.9]} 23. f3 {[%clk 0:00:32.2]} 23... Nd2
{[%clk 0:00:23.7]} 24. Rf2 {[%clk 0:00:30.3]} 24... Nb3 {[%clk 0:00:23.5]} 25.
Raf1 {[%clk 0:00:28.8]} 25... g3 {[%clk 0:00:23.8]} 26. Bxg3 {[%clk 0:00:22.5]}
26... Rxg3 {[%clk 0:00:24.7]} 27. Bc2 {[%clk 0:00:18.2]} 27... b5 {[%clk
0:00:24.9]} 28. Bxb3 {[%clk 0:00:17.7]} 28... bxa4 {[%clk 0:00:24.8]} 29. Bxa4
{[%clk 0:00:18.5]} 29... Rag8 {[%clk 0:00:20.6]} 30. Bc2 {[%clk 0:00:16]} 30...
Bh4 {[%clk 0:00:19.5]} 31. e4 {[%clk 0:00:14.8]} 31... R3g7 {[%clk 0:00:17]} 32.
exf5 {[%clk 0:00:12.2]} 32... Bf6 {[%clk 0:00:15]} 33. g4 {[%clk 0:00:11.9]}
33... hxg4 {[%clk 0:00:15.2]} 34. hxg4 {[%clk 0:00:11.1]} 34... Kh6 {[%clk
0:00:15]} 35. Rh2+ {[%clk 0:00:09.8]} 35... Kg5 {[%clk 0:00:15.6]} 36. Nh3+
{[%clk 0:00:09.8]} 36... Kh4 {[%clk 0:00:14.2]} 37. Rg1 {[%clk 0:00:08.5]} 37...
Bxd4 {[%clk 0:00:11.6]} 38. Nf4+ {[%clk 0:00:07.2]} 38... Kg5 {[%clk 0:00:11.7]}
39. Nh3+ {[%clk 0:00:05.9]} 39... Kf6 {[%clk 0:00:11.9]} 40. Rd1 {[%clk
0:00:05.9]} 40... Be5 {[%clk 0:00:11.6]} 41. Re2 {[%clk 0:00:04.9]} 41... Nc6
{[%clk 0:00:10.6]} 42. f4 {[%clk 0:00:05.1]} 42... Bxb2 {[%clk 0:00:09.5]} 43.
g5+ {[%clk 0:00:03]} 43... Rxg5 {[%clk 0:00:07.1]} 44. fxg5+ {[%clk 0:00:03.3]}
44... Kg7 {[%clk 0:00:07.5]} 45. f6+ {[%clk 0:00:02.7]} 45... Kf8 {[%clk
0:00:07.9]} 46. Rg1 {[%clk 0:00:01.8]} 46... Bd4 {[%clk 0:00:07.1]} 47. Rg4
{[%clk 0:00:01]} 47... Bc5 {[%clk 0:00:05.8]} 48. g6 {[%clk 0:00:01.1]} 48...
Be6 {[%clk 0:00:05.7]} 0-1

[Event "Late-Titled-Tuesday-Blitz-April-30-2024"]
[Site "Chess.com"]
[Date "2024.04.30"]
[Round "10"]
[White "Durarbayli"]
[Black "Statham_01"]
[Result "1-0"]
[WhiteElo "2927"]
[BlackElo "2643"]
[TimeControl "180+1"]
[EndTime "15:54:51 PDT"]
[Termination "Durarbayli won on time"]

1. e4 {[%clk 0:03:00.9]} 1... e6 {[%clk 0:03:00.3]} 2. d4 {[%clk 0:02:59.7]}
2... d5 {[%clk 0:03:00.9]} 3. Nc3 {[%clk 0:02:58.6]} 3... Nf6 {[%clk 0:03:01.3]}
4. e5 {[%clk 0:02:58.9]} 4... Nfd7 {[%clk 0:03:02]} 5. f4 {[%clk 0:02:59.6]}
5... c5 {[%clk 0:03:02.7]} 6. Nf3 {[%clk 0:03:00.3]} 6... Nc6 {[%clk 0:03:03.4]}
7. Be3 {[%clk 0:03:00.5]} 7... Be7 {[%clk 0:03:04]} 8. Ne2 {[%clk 0:02:59.9]}
8... O-O {[%clk 0:03:01.9]} 9. c3 {[%clk 0:02:59.4]} 9... Qb6 {[%clk 0:03:02.2]}
10. Rb1 {[%clk 0:02:56.3]} 10... f6 {[%clk 0:03:00.8]} 11. Qd2 {[%clk
0:02:51.3]} 11... fxe5 {[%clk 0:02:50.2]} 12. dxe5 {[%clk 0:02:47.7]} 12... Qc7
{[%clk 0:02:35.5]} 13. g3 {[%clk 0:02:35.2]} 13... b5 {[%clk 0:02:18.7]} 14. Bh3
{[%clk 0:02:30.2]} 14... Nb6 {[%clk 0:02:10.3]} 15. b3 {[%clk 0:02:28.6]} 15...
d4 {[%clk 0:02:02.1]} 16. Bf2 {[%clk 0:02:04.3]} 16... dxc3 {[%clk 0:01:36.1]}
17. Nxc3 {[%clk 0:01:45]} 17... Rd8 {[%clk 0:01:34.1]} 18. Qe2 {[%clk
0:01:40.7]} 18... Nd5 {[%clk 0:00:55.9]} 19. Ne4 {[%clk 0:01:22.8]} 19... Qa5+
{[%clk 0:00:52.5]} 20. Kf1 {[%clk 0:01:22.8]} 20... b4 {[%clk 0:00:46.1]} 21.
Kg2 {[%clk 0:01:16.3]} 21... Qb6 {[%clk 0:00:19.6]} 22. Rbc1 {[%clk 0:00:57.3]}
22... Nd4 {[%clk 0:00:18.8]} 23. Nxd4 {[%clk 0:00:35.1]} 23... cxd4 {[%clk
0:00:19.2]} 24. Rhd1 {[%clk 0:00:35.8]} 24... Nc3 {[%clk 0:00:14.7]} 25. Nxc3
{[%clk 0:00:26.5]} 25... bxc3 {[%clk 0:00:15.6]} 26. Rxc3 {[%clk 0:00:26.8]}
26... Ba6 {[%clk 0:00:14.6]} 27. Rc4 {[%clk 0:00:12.7]} 27... Rac8 {[%clk
0:00:05.3]} 28. Qg4 {[%clk 0:00:11]} 28... Bxc4 {[%clk 0:00:02.7]} 29. bxc4
{[%clk 0:00:11]} 29... Rc6 {[%clk 0:00:03.3]} 30. f5 {[%clk 0:00:05.7]} 30...
Qb7 {[%clk 0:00:03.9]} 31. Kg1 {[%clk 0:00:05.3]} 31... Rxc4 {[%clk 0:00:04.1]}
32. f6 {[%clk 0:00:05.6]} 32... Bf8 {[%clk 0:00:04.6]} 33. Qxe6+ {[%clk
0:00:05.9]} 33... Qf7 {[%clk 0:00:03.5]} 34. Qa6 {[%clk 0:00:06.5]} 34... Kh8
{[%clk 0:00:02.6]} 35. Be6 {[%clk 0:00:06.7]} 35... Qh5 {[%clk 0:00:03.1]} 36.
g4 {[%clk 0:00:06.1]} 36... Rc5 {[%clk 0:00:00.8]} 37. gxh5 {[%clk 0:00:05.7]}
37... Rxe5 {[%clk 0:00:01.7]} 38. fxg7+ {[%clk 0:00:05.9]} 38... Bxg7 {[%clk
0:00:02.6]} 39. Bg4 {[%clk 0:00:06.3]} 39... Rg5 {[%clk 0:00:03.2]} 40. h3
{[%clk 0:00:06.6]} 40... Rf8 {[%clk 0:00:02.9]} 41. Qxa7 {[%clk 0:00:06.5]}
41... d3 {[%clk 0:00:02.9]} 42. Rxd3 {[%clk 0:00:06.2]} 42... Rb5 {[%clk
0:00:01.9]} 43. Rd7 {[%clk 0:00:05.7]} 43... Rb1+ {[%clk 0:00:02.1]} 44. Kg2
{[%clk 0:00:06.3]} 44... Rb2 {[%clk 0:00:02.8]} 45. Rxg7 {[%clk 0:00:06.5]}
45... Rbxf2+ {[%clk 0:00:03.4]} 46. Qxf2 {[%clk 0:00:07.2]} 1-0

[Event "Late-Titled-Tuesday-Blitz-April-30-2024"]
[Site "Chess.com"]
[Date "2024.04.30"]
[Round "10"]
[White "AlainBruxelles"]
[Black "luggevoila"]
[Result "1-0"]
[WhiteElo "2248"]
[BlackElo "2314"]
[TimeControl "180+1"]
[EndTime "15:54:57 PDT"]
[Termination "AlainBruxelles won on time"]

1. e4 {[%clk 0:02:55.6]} 1... e5 {[%clk 0:02:59.7]} 2. Nf3 {[%clk 0:02:54.8]}
2... Nc6 {[%clk 0:03:00]} 3. Bb5 {[%clk 0:02:54.5]} 3... a6 {[%clk 0:02:59.4]}
4. Ba4 {[%clk 0:02:54.7]} 4... Nf6 {[%clk 0:02:59.6]} 5. O-O {[%clk 0:02:54.8]}
5... Bc5 {[%clk 0:02:58.6]} 6. Qe2 {[%clk 0:02:45]} 6... O-O {[%clk 0:02:52.6]}
7. c3 {[%clk 0:02:40.8]} 7... b5 {[%clk 0:02:51.4]} 8. Bc2 {[%clk 0:02:40.1]}
8... d6 {[%clk 0:02:50.1]} 9. Rd1 {[%clk 0:02:40]} 9... Bb6 {[%clk 0:02:42.3]}
10. h3 {[%clk 0:02:39.9]} 10... Re8 {[%clk 0:02:42.4]} 11. a4 {[%clk 0:02:35.3]}
11... Bb7 {[%clk 0:02:40.4]} 12. Na3 {[%clk 0:02:31.5]} 12... d5 {[%clk
0:02:33]} 13. d3 {[%clk 0:02:15.5]} 13... b4 {[%clk 0:02:25.8]} 14. Nb1 {[%clk
0:02:10.6]} 14... a5 {[%clk 0:02:20.3]} 15. Bg5 {[%clk 0:02:09]} 15... d4 {[%clk
0:02:05.1]} 16. c4 {[%clk 0:02:06.6]} 16... h6 {[%clk 0:02:00.5]} 17. Bh4 {[%clk
0:02:05.4]} 17... Bc5 {[%clk 0:01:55]} 18. Nbd2 {[%clk 0:02:02.7]} 18... Be7
{[%clk 0:01:54.2]} 19. Nf1 {[%clk 0:02:01.8]} 19... Nh5 {[%clk 0:01:53.7]} 20.
Bxe7 {[%clk 0:02:00.6]} 20... Qxe7 {[%clk 0:01:53.2]} 21. g3 {[%clk 0:01:56.2]}
21... Bc8 {[%clk 0:01:53]} 22. Nh4 {[%clk 0:01:47.9]} 22... g6 {[%clk
0:01:43.2]} 23. Nf5 {[%clk 0:01:11.9]} 23... Bxf5 {[%clk 0:01:18.9]} 24. exf5
{[%clk 0:01:10.7]} 24... Qg5 {[%clk 0:01:04.1]} 25. fxg6 {[%clk 0:00:58.2]}
25... Qxg6 {[%clk 0:00:50.6]} 26. Nd2 {[%clk 0:00:44.4]} 26... f5 {[%clk
0:00:49.8]} 27. Kh2 {[%clk 0:00:43.3]} 27... e4 {[%clk 0:00:42.5]} 28. Rg1
{[%clk 0:00:40.3]} 28... e3 {[%clk 0:00:37.5]} 29. Nf3 {[%clk 0:00:36.5]} 29...
Kh8 {[%clk 0:00:27.9]} 30. Nh4 {[%clk 0:00:36]} 30... Qf7 {[%clk 0:00:27.2]} 31.
Raf1 {[%clk 0:00:33.3]} 31... f4 {[%clk 0:00:25.1]} 32. Bd1 {[%clk 0:00:30.9]}
32... exf2 {[%clk 0:00:19]} 33. Qxf2 {[%clk 0:00:25.6]} 33... fxg3+ {[%clk
0:00:17.5]} 34. Qxg3 {[%clk 0:00:25.5]} 34... Qxf1 {[%clk 0:00:12.7]} 35. Ng6+
{[%clk 0:00:20.6]} 35... Kh7 {[%clk 0:00:09.7]} 36. Nf8+ {[%clk 0:00:16.2]}
36... Qxf8 {[%clk 0:00:06.5]} 37. Qg6+ {[%clk 0:00:14.8]} 37... Kh8 {[%clk
0:00:06.3]} 38. Bxh5 {[%clk 0:00:15.5]} 38... Ne5 {[%clk 0:00:05.5]} 39. Qg3
{[%clk 0:00:11.7]} 39... Re7 {[%clk 0:00:03.9]} 40. Be2 {[%clk 0:00:09.1]} 40...
Qg7 {[%clk 0:00:03.9]} 41. Qh4 {[%clk 0:00:08.3]} 41... Qf7 {[%clk 0:00:03.1]}
42. Qxh6+ {[%clk 0:00:08.1]} 42... Qh7 {[%clk 0:00:03.1]} 43. Qf6+ {[%clk
0:00:08.6]} 43... Rg7 {[%clk 0:00:03.6]} 44. Qxe5 {[%clk 0:00:09]} 44... Rg8
{[%clk 0:00:02.1]} 45. Bf3 {[%clk 0:00:08.6]} 45... Qh6 {[%clk 0:00:01.7]} 46.
Be4 {[%clk 0:00:07.5]} 46... Qd2+ {[%clk 0:00:01.7]} 47. Kh1 {[%clk 0:00:06.9]}
47... Qh6 {[%clk 0:00:00.6]} 48. Qf5 {[%clk 0:00:06.3]} 48... Rg5 {[%clk
0:00:00.1]} 49. Rxg5 {[%clk 0:00:05.2]} 1-0

[Event "Late-Titled-Tuesday-Blitz-April-30-2024"]
[Site "Chess.com"]
[Date "2024.04.30"]
[Round "10"]
[White "ChEsper99"]
[Black "rhungaski"]
[Result "1/2-1/2"]
[WhiteElo "2273"]
[BlackElo "2537"]
[TimeControl "180+1"]
[EndTime "15:55:06 PDT"]
[Termination "Game drawn by repetition"]

1. e4 {[%clk 0:02:58.9]} 1... e5 {[%clk 0:02:59.5]} 2. Nf3 {[%clk 0:02:58.7]}
2... Nc6 {[%clk 0:02:59.8]} 3. Bc4 {[%clk 0:02:58.8]} 3... Nf6 {[%clk
0:02:59.3]} 4. d3 {[%clk 0:02:58.8]} 4... h6 {[%clk 0:02:59]} 5. a4 {[%clk
0:02:56.9]} 5... d6 {[%clk 0:02:53.5]} 6. a5 {[%clk 0:02:54.5]} 6... g6 {[%clk
0:02:49.4]} 7. O-O {[%clk 0:02:51]} 7... Bg7 {[%clk 0:02:49.1]} 8. Nc3 {[%clk
0:02:49.7]} 8... O-O {[%clk 0:02:48.2]} 9. a6 {[%clk 0:02:47.2]} 9... bxa6
{[%clk 0:02:29.6]} 10. Bxa6 {[%clk 0:02:43.3]} 10... Bd7 {[%clk 0:02:25.7]} 11.
h3 {[%clk 0:02:41.3]} 11... Rb8 {[%clk 0:02:24.5]} 12. Bc4 {[%clk 0:02:35]}
12... Nh5 {[%clk 0:02:18.3]} 13. Bb3 {[%clk 0:02:17.1]} 13... a5 {[%clk
0:00:42.2]} 14. Be3 {[%clk 0:02:12.1]} 14... Nf4 {[%clk 0:00:28.1]} 15. d4
{[%clk 0:01:29.2]} 15... Rb4 {[%clk 0:00:10.8]} 16. dxe5 {[%clk 0:01:16.6]}
16... dxe5 {[%clk 0:00:11.7]} 17. Bc5 {[%clk 0:01:15]} 17... Rd4 {[%clk
0:00:12.3]} 18. Nxd4 {[%clk 0:01:05.7]} 18... exd4 {[%clk 0:00:13.2]} 19. Bxf8
{[%clk 0:01:03]} 19... Qg5 {[%clk 0:00:12.4]} 20. Qf3 {[%clk 0:00:49.2]} 20...
dxc3 {[%clk 0:00:12]} 21. Bxg7 {[%clk 0:00:48.5]} 21... Kxg7 {[%clk 0:00:12.9]}
22. Kh2 {[%clk 0:00:42.5]} 22... cxb2 {[%clk 0:00:09]} 23. Rab1 {[%clk 0:00:41]}
23... Nd4 {[%clk 0:00:04.5]} 24. Qg3 {[%clk 0:00:37.6]} 24... Qe5 {[%clk
0:00:05.1]} 25. Bc4 {[%clk 0:00:30.4]} 25... Nde6 {[%clk 0:00:04.8]} 26. Bxe6
{[%clk 0:00:29.6]} 26... Bxe6 {[%clk 0:00:05.7]} 27. c3 {[%clk 0:00:26]} 27...
Bc4 {[%clk 0:00:02.5]} 28. Rfe1 {[%clk 0:00:20.5]} 28... h5 {[%clk 0:00:03.2]}
29. Rxb2 {[%clk 0:00:20.3]} 29... h4 {[%clk 0:00:03.8]} 30. Qg4 {[%clk
0:00:15.4]} 30... Nd3+ {[%clk 0:00:04]} 31. f4 {[%clk 0:00:11.2]} 31... Qc5
{[%clk 0:00:02.7]} 32. Rbe2 {[%clk 0:00:03.9]} 32... Nxe1 {[%clk 0:00:02.9]} 33.
Rxe1 {[%clk 0:00:04.8]} 33... a4 {[%clk 0:00:03.6]} 34. f5 {[%clk 0:00:04.8]}
34... a3 {[%clk 0:00:03.5]} 35. Qxh4 {[%clk 0:00:04.6]} 35... Qe5+ {[%clk
0:00:03.4]} 36. Qg3 {[%clk 0:00:04]} 36... Qxg3+ {[%clk 0:00:02.1]} 37. Kxg3
{[%clk 0:00:04.9]} 37... a2 {[%clk 0:00:02.4]} 38. Kf3 {[%clk 0:00:04.1]} 38...
Kf6 {[%clk 0:00:02.8]} 39. Ke3 {[%clk 0:00:04.3]} 39... Bb3 {[%clk 0:00:02.7]}
40. fxg6 {[%clk 0:00:03.4]} 40... fxg6 {[%clk 0:00:02.8]} 41. Kd4 {[%clk
0:00:03]} 41... Bc2 {[%clk 0:00:03.1]} 42. Ra1 {[%clk 0:00:03.1]} 42... Bb1
{[%clk 0:00:03.6]} 43. g4 {[%clk 0:00:02.2]} 43... g5 {[%clk 0:00:03.5]} 44. e5+
{[%clk 0:00:02.3]} 44... Ke6 {[%clk 0:00:03.9]} 45. c4 {[%clk 0:00:02.6]} 45...
c6 {[%clk 0:00:01.6]} 46. c5 {[%clk 0:00:02.8]} 46... Ke7 {[%clk 0:00:01.2]} 47.
Kc4 {[%clk 0:00:03.1]} 47... Ke6 {[%clk 0:00:01.7]} 48. Kd4 {[%clk 0:00:03.5]}
48... Ke7 {[%clk 0:00:02.3]} 49. Kc4 {[%clk 0:00:03.9]} 49... Ke6 {[%clk
0:00:02.9]} 50. Kd4 {[%clk 0:00:03.2]} 1/2-1/2